fUSD/lending_fUSD_20250119
["ID","MTS","AMOUNT","RATE_DAILY","PERIOD"]
[349542823,1737287433269,-500.0,0.00019178,2]
[349542824,1737287433279,-500.0,0.00019178,2]
[349542825,1737287433289,-633.58,0.00019178,2]
[349542826,1737287433300,-500.0,0.00019178,2]
[349542827,1737287433311,-500.0,0.00019178,2]
[349542828,1737287433324,-500.0,0.00019178,2]
[349542829,1737287433334,-260.57618485,0.00019178,2]
[349542830,1737287433344,-500.0,0.00019178,2]
[349542831,1737287433355,-885.8,0.00019178,2]
[349542832,1737287433366,-500.0,0.00019178,2]
[349542833,1737287433376,-648.95376522,0.00019178,2]
[349542834,1737287433386,-1015.054238,0.00019178,2]
[349542835,1737287433399,-500.0,0.00019178,2]
[349542836,1737287433409,-500.0,0.00019178,2]
[349542837,1737287433419,-500.0,0.00019178,2]
[349542838,1737287433429,-500.0,0.00019178,2]
[349542839,1737287433438,-500.0,0.00019178,2]
[349542840,1737287433448,-500.0,0.00019178,2]
[349542841,1737287433458,-500.0,0.00019178,2]
[349542842,1737287433467,-127.39544358,0.00019178,2]
[349542843,1737287433481,-414.83469911,0.00019178,2]
[349542844,1737287433491,-104.59443319,0.00019178,2]
[349542845,1737287433507,-395.40556681,0.00019178,2]
[349542846,1737287433517,-425.60129089,0.00019178,2]
[349542847,1737287433543,-74.39870911,0.00019178,2]
[349542848,1737287433553,-500.0,0.00019178,2]
[349542849,1737287433564,-20.59464269,0.00019178,2]
[349542850,1737287433728,-538.35441231,0.00019178,2]
[349542851,1737287433739,-500.0,0.00019178,2]
[349542852,1737287433751,-500.0,0.00019178,2]
[349542853,1737287433761,-159.534965,0.00019178,2]
[349542854,1737287433770,-158.892989,0.00019178,2]
[349542855,1737287433781,-500.0,0.00019178,2]
[349542856,1737287433792,-500.0,0.00019178,2]
[349542857,1737287433802,-500.0,0.00019178,2]
[349542858,1737287433813,-500.0,0.00019178,2]
[349542859,1737287433823,-500.0,0.00019178,2]
[349542860,1737287433834,-500.0,0.00019178,2]
[349542861,1737287433845,-500.0,0.00019178,2]
[349542862,1737287433856,-500.0,0.00019178,2]
[349542863,1737287433866,-500.0,0.00019178,2]
[349542864,1737287433876,-500.0,0.00019178,2]
[349542865,1737287433886,-500.0,0.00019178,2]
[349542866,1737287433896,-500.0,0.00019178,2]
[349542867,1737287433906,-500.0,0.00019178,2]
[349542868,1737287433916,-500.0,0.00019178,2]
[349542869,1737287433927,-500.0,0.00019178,2]
[349542870,1737287433937,-580.16987087,0.00019178,2]
[349542871,1737287433950,-8.74012913,0.00019178,2]
[349542872,1737287433960,-500.0,0.00019178,2]
[349542873,1737287433972,-500.0,0.00019178,2]
[349542874,1737287433984,-604.63827165,0.00019178,2]
[349542875,1737287433994,-500.0,0.00019178,2]
[349542876,1737287434009,-500.0,0.00019178,2]
[349542877,1737287434020,-528.42644193,0.00019178,2]
[349542878,1737287434030,-500.0,0.00019178,2]
[349542879,1737287434040,-500.0,0.00019178,2]
[349542880,1737287434050,-500.0,0.00019178,2]
[349542881,1737287434060,-500.0,0.00019178,2]
[349542882,1737287434070,-273.76027295,0.00019178,2]
[349542883,1737287434080,-500.0,0.00019178,2]
[349542884,1737287434090,-500.0,0.00019178,2]
[349542885,1737287434100,-500.0,0.00019178,2]
[349542886,1737287434110,-500.0,0.00019178,2]
[349542887,1737287434120,-500.0,0.00019178,2]
[349542888,1737287434130,-500.0,0.00019178,2]
[349542889,1737287434140,-500.0,0.00019178,2]
[349542890,1737287434150,-500.0,0.00019178,2]
[349542891,1737287434160,-500.0,0.00019178,2]
[349542892,1737287434169,-219.04641707,0.00019178,2]
[349542893,1737287434182,-280.95358293,0.00019178,2]
[349542894,1737287434192,-500.0,0.00019178,2]
[349542895,1737287434202,-500.0,0.00019178,2]
[349542896,1737287434212,-500.0,0.00019178,2]
[349542897,1737287434222,-500.0,0.00019178,2]
[349542898,1737287434232,-500.0,0.00019178,2]
[349542899,1737287434508,-500.0,0.00019178,2]
[349542900,1737287434518,-500.0,0.00019178,2]
[349542901,1737287434528,-500.0,0.00019178,2]
[349542902,1737287434538,-514.14,0.00019178,2]
[349542903,1737287434547,-442.23441677,0.00019178,2]
[349542904,1737287434560,-57.76558323,0.00019178,2]
[349542905,1737287434570,-500.0,0.00019178,2]
[349542906,1737287434579,-500.0,0.00019178,2]
[349542907,1737287434589,-500.0,0.00019178,2]
[349542908,1737287434598,-324.24062023,0.00019178,2]
[349542909,1737287434610,-175.75937977,0.00019178,2]
[349542910,1737287434621,-328.09112023,0.00019178,2]
[349542911,1737287434633,-171.90887977,0.00019178,2]
[349542912,1737287434643,-500.0,0.00019178,2]
[349542913,1737287434652,-500.0,0.00019178,2]
[349542914,1737287434662,-22.91919523,0.00019178,2]
[349542915,1737287434674,-509.02101576,0.00019178,2]
[349542916,1737287434684,-500.0,0.00019178,2]
[349542917,1737287434694,-500.0,0.00019178,2]
[349542918,1737287434704,-500.0,0.00019178,2]
[349542919,1737287434713,-500.0,0.00019178,2]
[349542920,1737287434723,-500.0,0.00019178,2]
[349542921,1737287434734,-500.0,0.00019178,2]
[349542922,1737287434744,-500.0,0.00019178,2]
[349542923,1737287434756,-500.0,0.00019178,2]
[349542924,1737287434765,-500.0,0.00019178,2]
[349542925,1737287434775,-500.0,0.00019178,2]
[349542926,1737287434785,-500.0,0.00019178,2]
[349542927,1737287434795,-500.0,0.00019178,2]
[349542928,1737287434805,-241.55888075,0.00019178,2]
[349542929,1737287434815,-542.77691039,0.00019178,2]
[349542930,1737287434825,-500.0,0.00019178,2]
[349542931,1737287434835,-500.0,0.00019178,2]
[349542932,1737287434845,-500.0,0.00019178,2]
[349542933,1737287434855,-415.27909919,0.00019178,2]
[349542934,1737287434864,-500.0,0.00019178,2]
[349542935,1737287434874,-182.84108766,0.00019178,2]
[349542936,1737287434883,-522.20851528,0.00019178,2]
[349542937,1737287434892,-500.0,0.00019178,2]
[349542938,1737287434902,-533.39162499,0.00019178,2]
[349542939,1737287434911,-500.0,0.00019178,2]
[349542940,1737287434920,-500.0,0.00019178,2]
[349542941,1737287434929,-500.0,0.00019178,2]
[349542942,1737287434938,-500.0,0.00019178,2]
[349542943,1737287434947,-506.47723261,0.00019178,2]
[349542944,1737287434956,-500.0,0.00019178,2]
[349542945,1737287434966,-500.0,0.00019178,2]
[349542946,1737287434975,-500.0,0.00019178,2]
[349542947,1737287434984,-323.01694832,0.00019178,2]
[349542948,1737287434994,-500.0,0.00019178,2]
[349542949,1737287435008,-500.0,0.00019178,2]
[349542950,1737287435024,-500.0,0.00019178,2]
[349542951,1737287435034,-500.0,0.00019178,2]
[349542952,1737287435043,-500.0,0.00019178,2]
[349542953,1737287435052,-500.0,0.00019178,2]
[349542954,1737287435061,-500.0,0.00019178,2]
[349542955,1737287435070,-155.401624,0.00019178,2]
[349542956,1737287435081,-500.0,0.00019178,2]
[349542957,1737287435090,-1595.19,0.00019178,2]
[349542958,1737287435100,-500.0,0.00019178,2]
[349542959,1737287435109,-500.0,0.00019178,2]
[349542960,1737287435118,-500.0,0.00019178,2]
[349542961,1737287435127,-500.0,0.00019178,2]
[349542962,1737287435136,-500.0,0.00019178,2]
[349542963,1737287435145,-500.0,0.00019178,2]
[349542964,1737287435155,-500.0,0.00019178,2]
[349542965,1737287435164,-500.0,0.00019178,2]
[349542966,1737287435173,-500.0,0.00019178,2]
[349542967,1737287435183,-500.0,0.00019178,7]
[349542968,1737287435192,-500.0,0.00019178,2]
[349542969,1737287435202,-500.0,0.00019178,2]
[349542970,1737287435211,-311.16996962,0.00019178,2]
[349542971,1737287435220,-500.0,0.00019178,2]
[349542972,1737287435229,-500.0,0.00019178,2]
[349542973,1737287435238,-500.0,0.00019178,2]
[349542974,1737287435248,-500.0,0.00019178,2]
[349542975,1737287435257,-500.0,0.00019178,2]
[349542976,1737287435266,-500.0,0.00019178,2]
[349542977,1737287435275,-500.0,0.00019178,2]
[349542978,1737287435285,-500.0,0.00019178,2]
[349542979,1737287435294,-500.0,0.00019178,2]
[349542980,1737287435304,-500.0,0.00019178,2]
[349542981,1737287435315,-500.0,0.00019178,2]
[349542982,1737287435329,-500.0,0.00019178,2]
[349542983,1737287435338,-500.0,0.00019178,2]
[349542984,1737287435347,-500.0,0.00019178,2]
[349542985,1737287435358,-500.0,0.00019178,2]
[349542986,1737287435367,-500.0,0.00019178,2]
[349542987,1737287435377,-500.0,0.00019178,2]
[349542988,1737287435386,-500.0,0.00019178,2]
[349542989,1737287435399,-500.0,0.00019178,2]
[349542990,1737287435411,-500.0,0.00019178,2]
[349542991,1737287435422,-500.0,0.00019178,2]
[349542992,1737287435432,-500.0,0.00019178,2]
[349542993,1737287435443,-464.45387055,0.00019178,2]
[349542994,1737287435453,-500.0,0.00019178,2]
[349542995,1737287435463,-500.0,0.00019178,2]
[349542996,1737287435473,-500.0,0.00019178,2]
[349542997,1737287435483,-500.0,0.00019178,2]
[349542998,1737287435493,-317.23170171,0.00019178,2]
[349542999,1737287435504,-500.0,0.00019178,2]
[349543000,1737287435513,-500.0,0.00019178,2]
[349543001,1737287435523,-500.0,0.00019178,2]
[349543002,1737287435534,-500.0,0.00019178,2]
[349543003,1737287435544,-451.27482127,0.00019178,2]
[349543004,1737287435555,-526.79584522,0.00019178,2]
[349543005,1737287435567,-500.0,0.00019178,2]
[349543006,1737287435577,-500.0,0.00019178,2]
[349543007,1737287435588,-500.0,0.00019178,2]
[349543008,1737287435597,-500.0,0.00019178,2]
[349543009,1737287435608,-500.0,0.00019178,2]
[349543010,1737287435618,-500.0,0.00019178,2]
[349543011,1737287435628,-500.0,0.00019178,2]
[349543012,1737287435638,-500.0,0.00019178,2]
[349543013,1737287435648,-500.0,0.00019178,2]
[349543014,1737287435658,-572.24,0.00019178,2]
[349543015,1737287435668,-500.0,0.00019178,2]
[349543016,1737287435678,-500.0,0.00019178,2]
[349543017,1737287435688,-500.0,0.00019178,2]
[349543018,1737287435698,-500.0,0.00019178,2]
[349543019,1737287435708,-721.08,0.00019178,2]
[349543020,1737287435718,-500.0,0.00019178,2]
[349543021,1737287435728,-500.0,0.00019178,2]
[349543022,1737287435738,-500.0,0.00019178,2]
[349543023,1737287435747,-500.0,0.00019178,2]
[349543024,1737287435762,-500.0,0.00019178,2]
[349543025,1737287435772,-500.0,0.00019178,2]
[349543026,1737287435782,-500.0,0.00019178,2]
[349543027,1737287435792,-500.0,0.00019178,2]
[349543028,1737287435802,-500.0,0.00019178,2]
[349543029,1737287435812,-500.0,0.00019178,2]
[349543030,1737287435823,-500.0,0.00019178,2]
[349543031,1737287435833,-500.0,0.00019178,2]
[349543032,1737287435842,-500.0,0.00019178,2]
[349543033,1737287435853,-500.0,0.00019178,2]
[349543034,1737287435862,-500.0,0.00019178,2]
[349543035,1737287435872,-500.0,0.00019178,2]
[349543036,1737287435882,-500.0,0.00019178,2]
[349543037,1737287435891,-500.0,0.00019178,2]
[349543038,1737287435901,-500.0,0.00019178,2]
[349543039,1737287435911,-500.0,0.00019178,2]
[349543040,1737287435921,-500.0,0.00019178,2]
[349543041,1737287435932,-500.0,0.00019178,2]
[349543042,1737287435941,-526.56866418,0.00019178,2]
[349543043,1737287435951,-500.0,0.00019178,2]
[349543044,1737287435961,-500.0,0.00019178,2]
[349543045,1737287435971,-500.0,0.00019178,2]
[349543046,1737287435980,-316.06220633,0.00019178,2]
[349543047,1737287435990,-500.0,0.00019178,2]
[349543048,1737287436003,-500.0,0.00019178,2]
[349543049,1737287436013,-500.0,0.00019178,2]
[349543050,1737287436022,-533.73,0.00019178,2]
[349543051,1737287436032,-500.0,0.00019178,2]
[349543052,1737287436042,-542.96616277,0.00019178,2]
[349543053,1737287436051,-500.0,0.00019178,2]
[349543054,1737287436061,-500.0,0.00019178,2]
[349543055,1737287436070,-500.0,0.00019178,2]
[349543056,1737287436079,-500.0,0.00019178,2]
[349543057,1737287436089,-500.0,0.00019178,2]
[349543058,1737287436098,-500.0,0.00019178,2]
[349543059,1737287436107,-198.34752935,0.00019178,2]
[349543060,1737287436116,-500.0,0.00019178,2]
[349543061,1737287436125,-500.0,0.00019178,2]
[349543062,1737287436135,-500.0,0.00019178,2]
[349543063,1737287436144,-500.0,0.00019178,2]
[349543064,1737287436154,-500.0,0.00019178,2]
[349543065,1737287436164,-760.38,0.00019178,2]
[349543066,1737287436174,-500.0,0.00019178,2]
[349543067,1737287436183,-150.0,0.00019178,2]
[349543068,1737287436193,-500.0,0.00019178,2]
[349543069,1737287436202,-667.83,0.00019178,2]
[349543070,1737287436212,-500.0,0.00019178,2]
[349543071,1737287436221,-500.0,0.00019178,2]
[349543072,1737287436231,-500.0,0.00019178,2]
[349543073,1737287436240,-500.0,0.00019178,2]
[349543074,1737287436252,-500.0,0.00019178,2]
[349543075,1737287436261,-500.0,0.00019178,2]
[349543076,1737287436270,-503.25,0.00019178,2]
[349543077,1737287436279,-500.0,0.00019178,2]
[349543078,1737287436288,-500.0,0.00019178,2]
[349543079,1737287436297,-577.68883301,0.00019178,2]
[349543080,1737287436307,-500.0,0.00019178,2]
[349543081,1737287436317,-500.0,0.00019178,2]
[349543082,1737287436328,-500.0,0.00019178,2]
[349543083,1737287436338,-500.0,0.00019178,2]
[349543084,1737287436346,-500.0,0.00019178,2]
[349543085,1737287436356,-500.0,0.00019178,2]
[349543086,1737287436366,-539.08680381,0.00019178,2]
[349543087,1737287436375,-500.0,0.00019178,2]
[349543088,1737287436385,-500.0,0.00019178,2]
[349543089,1737287436395,-500.0,0.00019178,2]
[349543090,1737287436405,-230.12159602,0.00019178,2]
[349543091,1737287436415,-479.56550444,0.00019178,2]
[349543092,1737287436425,-696.36,0.00019178,2]
[349543093,1737287436434,-500.0,0.00019178,2]
[349543094,1737287436443,-43.44202991,0.00019178,2]
[349543096,1737287438635,-456.55797009,0.00019178,2]
[349543097,1737287438644,-500.0,0.00019178,2]
[349543098,1737287438653,-500.0,0.00019178,2]
[349543099,1737287438663,-500.0,0.00019178,2]
[349543100,1737287438672,-500.0,0.00019178,2]
[349543101,1737287438681,-500.0,0.00019178,2]
[349543102,1737287438691,-500.0,0.00019178,2]
[349543103,1737287438700,-513.12,0.00019178,2]
[349543104,1737287438709,-500.0,0.00019178,2]
[349543105,1737287438718,-500.0,0.00019178,2]
[349543106,1737287438728,-500.0,0.00019178,2]
[349543107,1737287438737,-500.0,0.00019178,2]
[349543108,1737287438747,-500.0,0.00019178,2]
[349543109,1737287438758,-517.1690949,0.00019178,2]
[349543111,1737287438767,-500.0,0.00019178,2]
[349543113,1737287438776,-500.0,0.00019178,2]
[349543114,1737287438786,-500.0,0.00019178,2]
[349543115,1737287438795,-500.0,0.00019178,2]
[349543116,1737287438804,-511.98156666,0.00019178,2]
[349543117,1737287438814,-500.0,0.00019178,2]
[349543118,1737287438824,-500.0,0.00019178,2]
[349543119,1737287438833,-492.5079859,0.00019178,2]
[349543120,1737287438843,-500.0,0.00019178,2]
[349543121,1737287438855,-500.0,0.00019178,2]
[349543122,1737287438869,-750.03,0.00019178,2]
[349543124,1737287438879,-793.57,0.00019178,2]
[349543126,1737287438888,-500.0,0.00019178,2]
[349543128,1737287438899,-500.0,0.00019178,2]
[349543130,1737287438909,-2331.02,0.00019178,2]
[349543132,1737287438918,-500.0,0.00019178,2]
[349543134,1737287438928,-500.0,0.00019178,2]
[349543135,1737287438938,-866.29,0.00019178,2]
[349543137,1737287438947,-500.0,0.00019178,2]
[349543140,1737287438956,-500.0,0.00019178,2]
[349543141,1737287438965,-1101.84,0.00019178,2]
[349543144,1737287438975,-500.0,0.00019178,2]
[349543145,1737287438984,-500.0,0.00019178,2]
[349543148,1737287438993,-500.0,0.00019178,2]
[349543149,1737287439003,-500.0,0.00019178,2]
[349543152,1737287439013,-500.0,0.00019178,2]
[349543153,1737287439022,-949.88,0.00019178,2]
[349543156,1737287439032,-500.0,0.00019178,2]
[349543158,1737287439041,-873.34,0.00019178,2]
[349543160,1737287439051,-500.0,0.00019178,2]
[349543162,1737287439064,-500.0,0.00019178,2]
[349543163,1737287439073,-871.58,0.00019178,2]
[349543165,1737287439083,-500.0,0.00019178,2]
[349543167,1737287439092,-517.96154012,0.00019178,2]
[349543169,1737287439101,-500.0,0.00019178,2]
[349543171,1737287439110,-506.65,0.00019178,2]
[349543173,1737287439119,-730.7,0.00019178,2]
[349543175,1737287439128,-500.0,0.00019178,2]
[349543177,1737287439137,-500.0,0.00019178,2]
[349543179,1737287439147,-662.08,0.00019178,2]
[349543181,1737287439156,-922.24,0.00019178,2]
[349543183,1737287439165,-512.73176286,0.00019178,2]
[349543185,1737287439175,-500.0,0.00019178,2]
[349543187,1737287439184,-500.0,0.00019178,2]
[349543189,1737287439193,-1662.65,0.00019178,2]
[349543191,1737287439203,-1042.09,0.00019178,2]
[349543193,1737287439212,-500.0,0.00019178,2]
[349543195,1737287439221,-460.21654168,0.00019178,2]
[349543197,1737287439231,-500.0,0.00019178,2]
[349543199,1737287439240,-500.0,0.00019178,2]
[349543201,1737287439249,-1387.5,0.00019178,2]
[349543203,1737287439260,-500.0,0.00019178,2]
[349543205,1737287439269,-500.0,0.00019178,2]
[349543207,1737287439278,-500.0,0.00019178,2]
[349543209,1737287439287,-1272.22,0.00019178,2]
[349543211,1737287439296,-500.0,0.00019178,2]
[349543213,1737287439305,-515.64,0.00019178,2]
[349543215,1737287439320,-500.0,0.00019178,2]
[349543217,1737287439329,-1004.97,0.00019178,2]
[349543219,1737287439338,-500.0,0.00019178,2]
[349543221,1737287439348,-500.0,0.00019178,2]
[349543223,1737287439358,-1345.41,0.00019178,2]
[349543225,1737287439367,-5852.05,0.00019178,2]
[349543227,1737287439376,-500.47216521,0.00019178,2]
[349543229,1737287439385,-500.0,0.00019178,2]
[349543231,1737287439395,-500.0,0.00019178,2]
[349543233,1737287439405,-500.0,0.00019178,2]
[349543235,1737287439414,-839.09,0.00019178,2]
[349543237,1737287439423,-500.0,0.00019178,2]
[349543239,1737287439432,-500.0,0.00019178,2]
[349543241,1737287439441,-500.0,0.00019178,2]
[349543243,1737287439450,-500.0,0.00019178,2]
[349543245,1737287439459,-537.5,0.00019178,2]
[349543247,1737287439468,-500.0,0.00019178,2]
[349543249,1737287439477,-2345.34,0.00019178,2]
[349543251,1737287439487,-500.0,0.00019178,2]
[349543253,1737287439497,-500.0,0.00019178,2]
[349543255,1737287439508,-500.0,0.00019178,2]
[349543257,1737287439516,-500.0,0.00019178,2]
[349543259,1737287439526,-596.92,0.00019178,2]
[349543261,1737287439535,-452.32791764,0.00019178,2]
[349543263,1737287439544,-500.0,0.00019178,2]
[349543265,1737287439553,-509.56376696,0.00019178,2]
[349543267,1737287439563,-500.0,0.00019178,2]
[349543269,1737287439571,-500.0,0.00019178,2]
[349543271,1737287439580,-500.0,0.00019178,2]
[349543273,1737287439589,-500.0,0.00019178,2]
[349543275,1737287439598,-941.79,0.00019178,2]
[349543277,1737287439607,-669.97,0.00019178,2]
[349543279,1737287439616,-500.0,0.00019178,2]
[349543281,1737287439625,-500.0,0.00019178,2]
[349543283,1737287439634,-535.32,0.00019178,2]
[349543285,1737287439643,-500.0,0.00019178,2]
[349543287,1737287439653,-500.0,0.00019178,2]
[349543289,1737287439662,-580.32846184,0.00019178,2]
[349543291,1737287439671,-500.0,0.00019178,2]
[349543293,1737287439680,-1576.86,0.00019178,2]
[349543295,1737287439690,-500.0,0.00019178,2]
[349543297,1737287439699,-667.99,0.00019178,2]
[349543299,1737287439708,-500.0,0.00019178,2]
[349543301,1737287439718,-1067.5,0.00019178,2]
[349543303,1737287439728,-500.0,0.00019178,2]
[349543305,1737287439737,-516.47627339,0.00019178,2]
[349543307,1737287439746,-500.0,0.00019178,2]
[349543309,1737287439755,-619.31,0.00019178,2]
[349543311,1737287439765,-500.0,0.00019178,2]
[349543313,1737287439775,-500.0,0.00019178,2]
[349543315,1737287439784,-483.11111617,0.00019178,2]
[349543317,1737287439793,-3502.0,0.00019178,2]
[349543319,1737287439801,-2244.42,0.00019178,2]
[349543321,1737287439810,-1728.1,0.00019178,2]
[349543323,1737287439819,-508.60085833,0.00019178,2]
[349543325,1737287439829,-500.0,0.00019178,2]
[349543327,1737287439838,-614.62,0.00019178,2]
[349543329,1737287439847,-500.0,0.00019178,2]
[349543331,1737287439856,-2073.97,0.00019178,2]
[349543333,1737287439866,-500.0,0.00019178,2]
[349543335,1737287439876,-500.0,0.00019178,2]
[349543337,1737287439885,-500.0,0.00019178,2]
[349543339,1737287439894,-500.0,0.00019178,2]
[349543341,1737287439904,-1658.36,0.00019178,2]
[349543343,1737287439913,-200.0,0.00019178,2]
[349543345,1737287439922,-500.0,0.00019178,2]
[349543347,1737287439931,-500.0,0.00019178,2]
[349543349,1737287439940,-1109.53,0.00019178,2]
[349543351,1737287439951,-887.06,0.00019178,2]
[349543353,1737287439964,-500.0,0.00019178,2]
[349543355,1737287439975,-3007.02,0.00019178,2]
[349543357,1737287439984,-521.17323948,0.00019178,2]
[349543359,1737287439993,-2942.33,0.00019178,2]
[349543361,1737287440005,-1220.73,0.00019178,2]
[349543363,1737287440014,-500.0,0.00019178,2]
[349543365,1737287440023,-500.0,0.00019178,2]
[349543366,1737287440032,-500.0,0.00019178,2]
[349543368,1737287440042,-503.9085247,0.00019178,2]
[349543371,1737287440051,-500.0,0.00019178,2]
[349543372,1737287440060,-500.0,0.00019178,2]
[349543374,1737287440070,-1665.33,0.00019178,2]
[349543376,1737287440078,-500.0,0.00019178,2]
[349543378,1737287440088,-500.0,0.00019178,2]
[349543380,1737287440097,-500.0,0.00019178,2]
[349543382,1737287440106,-500.0,0.00019178,2]
[349543384,1737287440116,-500.0,0.00019178,2]
[349543386,1737287440125,-500.0,0.00019178,2]
[349543388,1737287440135,-322.26581569,0.00019178,2]
[349543390,1737287440144,-500.0,0.00019178,2]
[349543392,1737287440155,-500.0,0.00019178,2]
[349543394,1737287440164,-500.0,0.00019178,2]
[349543396,1737287440173,-2467.18,0.00019178,2]
[349543398,1737287440182,-500.0,0.00019178,2]
[349543400,1737287440191,-5214.85,0.00019178,2]
[349543402,1737287440200,-605.96,0.00019178,2]
[349543403,1737287440210,-5676.94,0.00019178,2]
[349543404,1737287440219,-628.93,0.00019178,2]
[349543405,1737287440228,-500.0,0.00019178,2]
[349543406,1737287440238,-500.0,0.00019178,2]
[349543407,1737287440247,-500.0,0.00019178,2]
[349543408,1737287440261,-956.06131486,0.00019178,2]
[349543410,1737287440277,-1092.6008584,0.00019178,2]
[349543412,1737287440288,-3369.53782674,0.00019178,2]
[349543414,1737287440297,-961.81505916,0.00019178,2]
[349543416,1737287440308,-222.74494084,0.00019178,2]
[349543418,1737287440318,-500.0,0.00019178,2]
[349543420,1737287440330,-500.0,0.00019178,2]
[349543422,1737287440340,-518.8938184,0.00019178,2]
[349543424,1737287440349,-500.0,0.00019178,2]
[349543426,1737287440358,-500.0,0.00019178,2]
[349543428,1737287440367,-743.93,0.00019178,2]
[349543430,1737287440376,-500.0,0.00019178,2]
[349543432,1737287440385,-5058.10966216,0.00019178,2]
[349543435,1737287440402,-64.11033784,0.00019178,2]
[349543437,1737287440412,-1303.63,0.00019178,2]
[349543439,1737287440421,-500.0,0.00019178,2]
[349543441,1737287440430,-500.0,0.00019178,2]
[349543443,1737287440439,-203.0143083,0.00019178,2]
[349543445,1737287440450,-503.9356917,0.00019178,2]
[349543448,1737287440459,-497.21830849,0.00019178,2]
[349543451,1737287440470,-2.78169151,0.00019178,2]
[349543454,1737287440479,-777.63,0.00019178,2]
[349543457,1737287440488,-500.0,0.00019178,2]
[349543460,1737287440497,-500.0,0.00019178,2]
[349543463,1737287440509,-217.72750851,0.00019178,2]
[349543466,1737287440520,-282.27249149,0.00019178,2]
[349543469,1737287440529,-500.0,0.00019178,2]
[349543472,1737287440538,-971.34,0.00019178,2]
[349543474,1737287440547,-500.0,0.00019178,2]
[349543476,1737287440556,-574.58995959,0.00019178,2]
[349543478,1737287440565,-500.0,0.00019178,2]
[349543480,1737287440574,-500.0,0.00019178,2]
[349543482,1737287440583,-500.0,0.00019178,2]
[349543484,1737287440592,-500.0,0.00019178,2]
[349543486,1737287440601,-500.0,0.00019178,2]
[349543488,1737287440610,-1438.53,0.00019178,2]
[349543490,1737287440619,-608.47,0.00019178,2]
[349543492,1737287440629,-500.0,0.00019178,2]
[349543494,1737287440638,-596.09,0.00019178,2]
[349543496,1737287440647,-725.66,0.00019178,2]
[349543498,1737287440655,-500.0,0.00019178,2]
[349543500,1737287440664,-1178.84,0.00019178,2]
[349543502,1737287440673,-1634.27,0.00019178,2]
[349543504,1737287440683,-712.19,0.00019178,2]
[349543506,1737287440692,-500.0,0.00019178,2]
[349543508,1737287440701,-503.07,0.00019178,2]
[349543510,1737287440710,-1000.0,0.00019178,2]
[349543512,1737287440719,-500.0,0.00019178,2]
[349543514,1737287440730,-608.28,0.00019178,2]
[349543516,1737287440742,-500.0,0.00019178,2]
[349543518,1737287440753,-500.0,0.00019178,2]
[349543520,1737287440762,-500.0,0.00019178,2]
[349543522,1737287440771,-500.0,0.00019178,2]
[349543524,1737287440781,-500.0,0.00019178,2]
[349543526,1737287440791,-500.0,0.00019178,2]
[349543528,1737287440800,-1954.92,0.00019178,2]
[349543530,1737287440809,-500.0,0.00019178,2]